fUSD/lending_fUSD_20240215
["ID","MTS","AMOUNT","RATE_DAILY","PERIOD"]
[314093724,1707972636303,-500.0,0.00038356,7]
[314093725,1707972636312,-513.42858354,0.00038356,7]
[314093726,1707972636322,-526.14456712,0.00038356,7]
[314093727,1707972636330,-506.87181123,0.00038356,7]
[314093728,1707972636341,-500.0,0.00038356,7]
[314093729,1707972636350,-503.32541758,0.00038356,7]
[314093730,1707972636359,-197.69661819,0.00038356,7]
[314093731,1707972636368,-513.54020715,0.00038356,7]
[314093732,1707972636377,-500.0,0.00038356,7]
[314093733,1707972636386,-515.52408951,0.00038356,7]
[314093734,1707972636395,-522.21103018,0.00038356,7]
[314093735,1707972636405,-517.61200919,0.00038356,7]
[314093736,1707972636414,-500.0,0.00038356,7]
[314093737,1707972636423,-502.9539551,0.00038356,7]
[314093738,1707972636432,-601.59794174,0.00038356,7]
[314093739,1707972636441,-500.0,0.00038356,7]
[314093740,1707972636451,-165.35441936,0.00038356,7]
[314093741,1707972636460,-518.48608303,0.00038356,7]
[314093742,1707972636469,-514.18308753,0.00038356,7]
[314093743,1707972636478,-528.92683781,0.00038356,7]
[314093744,1707972636488,-522.3038993,0.00038356,7]
[314093745,1707972636497,-500.0,0.00038356,7]
[314093746,1707972636625,-500.0,0.00038356,7]
[314093747,1707972636636,-500.0,0.00038356,7]
[314093748,1707972636645,-505.17167283,0.00038356,7]
[314093749,1707972636655,-519.96833958,0.00038356,7]
[314093750,1707972636665,-533.78762561,0.00038356,7]
[314093751,1707972636675,-500.0,0.00038356,7]
[314093752,1707972636685,-534.71461591,0.00038356,7]
[314093753,1707972636694,-500.0,0.00038356,7]
[314093754,1707972636703,-500.0,0.00038356,7]
[314093755,1707972636713,-516.07790513,0.00038356,7]
[314093756,1707972636722,-505.81673384,0.00038356,7]
[314093757,1707972636731,-519.81650682,0.00038356,7]
[314093758,1707972636741,-500.0,0.00038356,7]
[314093759,1707972636750,-500.0,0.00038356,7]
[314093760,1707972636759,-507.93612907,0.00038356,7]
[314093761,1707972636768,-500.0,0.00038356,7]
[314093762,1707972636777,-511.72117939,0.00038356,7]
[314093763,1707972636786,-503.3753072,0.00038356,7]
[314093764,1707972636796,-500.0,0.00038356,7]
[314093765,1707972636805,-500.0,0.00038356,7]
[314093766,1707972636814,-500.0,0.00038356,7]
[314093767,1707972636823,-500.0,0.00038356,7]
[314093768,1707972636833,-513.99335436,0.00038356,7]
[314093769,1707972636843,-492.14944971,0.00038356,7]
[314093770,1707972636853,-500.0,0.00038356,7]
[314093771,1707972636862,-504.39652665,0.00038356,7]
[314093772,1707972636872,-511.29709236,0.00038356,7]
[314093773,1707972636881,-522.04631991,0.00038356,7]
[314093774,1707972636890,-500.0,0.00038356,7]
[314093775,1707972636900,-504.70462892,0.00038356,7]
[314093776,1707972636909,-578.37964895,0.00038356,7]
[314093777,1707972636918,-500.0,0.00038356,7]
[314093778,1707972636928,-515.73610636,0.00038356,7]
[314093779,1707972636938,-510.41674453,0.00038356,7]
[314093780,1707972636947,-500.0,0.00038356,7]
[314093781,1707972636956,-500.0,0.00038356,7]
[314093782,1707972636965,-500.0,0.00038356,7]
[314093783,1707972636974,-500.0,0.00038356,7]
[314093784,1707972636984,-514.63876129,0.00038356,7]
[314093785,1707972636993,-520.8161377,0.00038356,7]
[314093786,1707972637002,-516.37917183,0.00038356,7]
[314093787,1707972637011,-532.41733172,0.00038356,7]
[314093788,1707972637020,-500.0,0.00038356,7]
[314093789,1707972637030,-500.0,0.00038356,7]
[314093790,1707972637038,-500.0,0.00038356,7]
[314093791,1707972637047,-500.0,0.00038356,7]
[314093792,1707972637056,-500.0,0.00038356,7]
[314093793,1707972637065,-514.40487355,0.00038356,7]
[314093794,1707972637073,-500.0,0.00038356,7]
[314093795,1707972637083,-500.0,0.00038356,7]
[314093796,1707972637092,-640.20520871,0.00038356,7]
[314093797,1707972637102,-500.0,0.00038356,7]
[314093798,1707972637113,-509.0728229,0.00038356,7]
[314093799,1707972637122,-500.0,0.00038356,7]
[314093800,1707972637131,-500.0,0.00038356,7]
[314093801,1707972637140,-500.0,0.00038356,7]
[314093802,1707972637149,-500.0,0.00038356,7]
[314093803,1707972637158,-427.34707273,0.00038356,7]
[314093804,1707972637168,-503.17464348,0.00038356,7]
[314093805,1707972637177,-500.0,0.00038356,7]
[314093806,1707972637186,-500.0,0.00038356,7]
[314093807,1707972637195,-506.70872341,0.00038356,7]
[314093808,1707972637204,-500.0,0.00038356,7]
[314093809,1707972637213,-500.0,0.00038356,7]
[314093810,1707972637222,-500.0,0.00038356,7]
[314093811,1707972637231,-500.0,0.00038356,7]
[314093812,1707972637240,-521.05108576,0.00038356,7]
[314093813,1707972637249,-500.0,0.00038356,7]
[314093814,1707972637258,-518.57860347,0.00038356,7]
[314093815,1707972637268,-525.16476214,0.00038356,7]
[314093816,1707972637277,-512.44433726,0.00038356,7]
[314093817,1707972637286,-500.0,0.00038356,7]
[314093818,1707972637295,-503.76228321,0.00038356,7]
[314093819,1707972637304,-500.0,0.00038356,7]
[314093820,1707972637313,-500.0,0.00038356,7]
[314093821,1707972637322,-506.58485375,0.00038356,7]
[314093822,1707972637331,-500.0,0.00038356,7]
[314093823,1707972637340,-557.25108163,0.00038356,7]
[314093824,1707972637349,-522.10874906,0.00038356,7]
[314093825,1707972637359,-507.98715626,0.00038356,7]
[314093826,1707972637367,-500.0,0.00038356,7]
[314093827,1707972637376,-500.0,0.00038356,7]
[314093828,1707972637386,-521.82588976,0.00038356,7]
[314093829,1707972637395,-500.0,0.00038356,7]
[314093830,1707972637404,-500.0,0.00038356,7]
[314093831,1707972637412,-537.8573434,0.00038356,7]
[314093832,1707972637422,-523.67164318,0.00038356,7]
[314093833,1707972637430,-600.71734411,0.00038356,7]
[314093834,1707972637439,-626.85971791,0.00038356,7]
[314093835,1707972637449,-511.99081516,0.00038356,7]
[314093836,1707972637459,-491.86355155,0.00038356,7]
[314093837,1707972637468,-514.19340767,0.00038356,7]
[314093838,1707972637477,-500.0,0.00038356,7]
[314093839,1707972637487,-500.0,0.00038356,7]
[314093840,1707972637496,-511.74062332,0.00038356,7]
[314093841,1707972637505,-728.22,0.00038356,7]
[314093842,1707972637514,-856.09,0.00038356,7]
[314093843,1707972637523,-500.0,0.00038356,7]
[314093844,1707972637532,-470.09,0.00038356,7]
[314093845,1707972637541,-170.11064494,0.00038356,7]
[314093846,1707972637550,-521.25274205,0.00038356,7]
[314093847,1707972637559,-500.0,0.00038356,7]
[314093848,1707972637568,-511.81594067,0.00038356,7]
[314093849,1707972637577,-510.15675536,0.00038356,7]
[314093850,1707972637586,-519.85982458,0.00038356,7]
[314093851,1707972637595,-510.91051425,0.00038356,7]
[314093852,1707972637605,-500.0,0.00038356,7]
[314093853,1707972637614,-521.48439384,0.00038356,7]
[314093854,1707972637624,-508.61759975,0.00038356,7]
[314093855,1707972637633,-523.1913926,0.00038356,7]
[314093856,1707972637644,-587.72380921,0.00038356,7]
[314093857,1707972637653,-500.0,0.00038356,7]
[314093858,1707972637665,-535.5745864,0.00038356,7]
[314093859,1707972637674,-566.31315804,0.00038356,7]
[314093860,1707972637684,-521.38201317,0.00038356,7]
[314093861,1707972637693,-520.72234652,0.00038356,7]
[314093862,1707972637702,-500.0,0.00038356,7]
[314093863,1707972637711,-516.7015878,0.00038356,7]
[314093864,1707972637721,-500.0,0.00038356,7]
[314093865,1707972637730,-500.0,0.00038356,7]
[314093866,1707972637739,-632.92258197,0.00038356,7]
[314093867,1707972637748,-515.0744271,0.00038356,7]
[314093868,1707972637758,-500.0,0.00038356,7]
[314093869,1707972637767,-537.94,0.00038356,7]
[314093870,1707972637776,-500.0,0.00038356,7]
[314093871,1707972637787,-500.0,0.00038356,7]
[314093872,1707972637797,-500.0,0.00038356,7]
[314093874,1707972637806,-500.0,0.00038356,7]
[314093875,1707972637815,-500.0,0.00038356,7]
[314093876,1707972637825,-500.0,0.00038356,7]
[314093877,1707972637835,-500.0,0.00038356,7]
[314093878,1707972637843,-503.43068651,0.00038356,7]
[314093879,1707972637853,-500.0,0.00038356,7]
[314093881,1707972637864,-500.0,0.00038356,7]
[314093882,1707972637873,-500.0,0.00038356,7]
[314093883,1707972637882,-506.35142436,0.00038356,7]
[314093884,1707972637891,-500.0,0.00038356,7]
[314093885,1707972637901,-500.0,0.00038356,7]
[314093886,1707972637911,-500.0,0.00038356,7]
[314093887,1707972637920,-521.25867656,0.00038356,7]
[314093888,1707972637929,-500.0,0.00038356,7]
[314093890,1707972637938,-500.0,0.00038356,7]
[314093892,1707972637947,-500.0,0.00038356,7]
[314093893,1707972637956,-500.0,0.00038356,7]
[314093894,1707972637966,-518.84090823,0.00038356,7]
[314093895,1707972637974,-535.82399057,0.00038356,7]
[314093896,1707972637983,-500.0,0.00038356,7]
[314093897,1707972637993,-500.0,0.00038356,7]
[314093898,1707972638003,-500.0,0.00038356,7]
[314093899,1707972638012,-500.0,0.00038356,7]
[314093900,1707972638021,-524.12743381,0.00038356,7]
[314093901,1707972638030,-553.95140339,0.00038356,7]
[314093902,1707972638039,-705.71,0.00038356,7]
[314093903,1707972638048,-515.7048019,0.00038356,7]
[314093904,1707972638057,-513.36435897,0.00038356,7]
[314093905,1707972638066,-508.49537156,0.00038356,7]
[314093906,1707972638075,-500.0,0.00038356,7]
[314093907,1707972638084,-500.0,0.00038356,7]
[314093908,1707972638094,-514.02194776,0.00038356,7]
[314093909,1707972638104,-525.26207875,0.00038356,7]
[314093910,1707972638114,-500.0,0.00038356,7]
[314093911,1707972638123,-500.0,0.00038356,7]
[314093912,1707972638133,-500.0,0.00038356,7]
[314093913,1707972638142,-503.67323854,0.00038356,7]
[314093914,1707972638153,-500.0,0.00038356,7]
[314093915,1707972638162,-500.0,0.00038356,7]
[314093916,1707972638171,-533.10416827,0.00038356,7]
[314093917,1707972638181,-228.29611074,0.00038356,7]
[314093918,1707972638190,-500.0,0.00038356,7]
[314093919,1707972638199,-500.0,0.00038356,7]
[314093920,1707972638208,-500.0,0.00038356,7]
[314093921,1707972638218,-504.22095488,0.00038356,7]
[314093922,1707972638227,-505.44226708,0.00038356,7]
[314093923,1707972638236,-523.2526565,0.00038356,7]
[314093924,1707972638245,-510.24477353,0.00038356,7]
[314093925,1707972638254,-500.0,0.00038356,7]
[314093926,1707972638263,-515.39290728,0.00038356,7]
[314093927,1707972638273,-500.0,0.00038356,7]
[314093928,1707972638282,-500.0,0.00038356,7]
[314093929,1707972638291,-500.0,0.00038356,7]
[314093930,1707972638300,-500.0,0.00038356,7]
[314093931,1707972638309,-500.0,0.00038356,7]
[314093932,1707972638318,-570.34177993,0.00038356,7]
[314093933,1707972638327,-500.0,0.00038356,7]
[314093934,1707972638337,-622.70929628,0.00038356,7]
[314093935,1707972638346,-501.8597257,0.00038356,7]
[314093936,1707972638355,-500.0,0.00038356,7]
[314093937,1707972638364,-500.0,0.00038356,7]
[314093938,1707972638373,-500.0,0.00038356,7]
[314093939,1707972638382,-500.0,0.00038356,7]
[314093940,1707972638391,-500.0,0.00038356,7]
[314093941,1707972638400,-500.0,0.00038356,7]
[314093942,1707972638410,-500.0,0.00038356,7]
[314093943,1707972638419,-500.0,0.00038356,7]
[314093944,1707972638428,-631.25861426,0.00038356,7]
[314093945,1707972638438,-500.0,0.00038356,7]
[314093946,1707972638447,-500.0,0.00038356,7]
[314093947,1707972638455,-500.0,0.00038356,7]
[314093949,1707972638465,-517.03350251,0.00038356,7]
[314093951,1707972638474,-500.0,0.00038356,7]
[314093952,1707972638483,-500.0,0.00038356,7]
[314093954,1707972638492,-500.0,0.00038356,7]
[314093957,1707972638502,-500.0,0.00038356,7]
[314093958,1707972638511,-1000.0,0.00038356,7]
[314093960,1707972638521,-500.0,0.00038356,7]
[314093962,1707972638530,-510.95356617,0.00038356,7]
[314093965,1707972638540,-500.0,0.00038356,7]
[314093968,1707972638549,-500.0,0.00038356,7]
[314093970,1707972638558,-523.46267885,0.00038356,7]
[314093972,1707972638567,-500.0,0.00038356,7]
[314093973,1707972638576,-500.0,0.00038356,7]
[314093975,1707972638586,-500.0,0.00038356,7]
[314093977,1707972638595,-500.0,0.00038356,7]
[314093980,1707972638605,-519.41259209,0.00038356,7]
[314093981,1707972638614,-543.06817375,0.00038356,7]
[314093983,1707972638623,-500.0,0.00038356,7]
[314093985,1707972638632,-500.0,0.00038356,7]
[314093987,1707972638641,-500.0,0.00038356,7]
[314093989,1707972638650,-500.0,0.00038356,7]
[314093991,1707972638659,-500.0,0.00038356,7]
[314093993,1707972638668,-623.65705456,0.00038356,7]
[314093995,1707972638677,-500.0,0.00038356,7]
[314093997,1707972638686,-500.0,0.00038356,7]
[314093999,1707972638695,-500.0,0.00038356,7]
[314094001,1707972638704,-500.0,0.00038356,7]
[314094003,1707972638714,-500.0,0.00038356,7]
[314094005,1707972638723,-500.0,0.00038356,7]
[314094007,1707972638732,-500.0,0.00038356,7]
[314094009,1707972638742,-518.08579994,0.00038356,7]
[314094011,1707972638751,-500.0,0.00038356,7]
[314094013,1707972638760,-500.0,0.00038356,7]
[314094015,1707972638769,-500.0,0.00038356,7]
[314094017,1707972638779,-500.0,0.00038356,7]
[314094019,1707972638788,-500.0,0.00038356,7]
[314094021,1707972638797,-500.0,0.00038356,7]
[314094023,1707972638806,-482.81047396,0.00038356,7]
[314094045,1707972638990,-81.04399154,0.00038356,7]
[314094047,1707972638999,-500.0,0.00038356,7]
[314094049,1707972639009,-500.0,0.00038356,7]
[314094051,1707972639018,-506.81351498,0.00038356,7]
[314094053,1707972639027,-500.0,0.00038356,7]
[314094055,1707972639035,-432.34913132,0.00038356,7]
[314094057,1707972639045,-500.0,0.00038356,7]
[314094059,1707972639054,-150.0,0.00038356,7]
[314094061,1707972639063,-517.35925881,0.00038356,7]
[314094075,1707972639188,-537.43003516,0.00038356,7]
[314094077,1707972639199,-543.57921175,0.00038356,7]
[314094079,1707972639208,-500.0,0.00038356,7]
[314094081,1707972639217,-500.0,0.00038356,7]
[314094083,1707972639226,-500.0,0.00038356,7]
[314094085,1707972639235,-500.0,0.00038356,7]
[314094087,1707972639244,-500.0,0.00038356,7]
[314094089,1707972639253,-506.14815231,0.00038356,7]
[314094091,1707972639263,-500.0,0.00038356,7]
[314094092,1707972639272,-500.0,0.00038356,7]
[314094094,1707972639281,-500.0,0.00038356,7]
[314094096,1707972639290,-500.0,0.00038356,7]
[314094098,1707972639299,-528.12627516,0.00038356,7]
[314094100,1707972639308,-552.58564087,0.00038356,7]
[314094102,1707972639317,-500.0,0.00038356,7]
[314094104,1707972639327,-500.0,0.00038356,7]
[314094106,1707972639336,-3137.26580194,0.00038356,7]
[314094108,1707972639345,-500.0,0.00038356,7]
[314094110,1707972639355,-515.7053068,0.00038356,7]
[314094112,1707972639364,-500.0,0.00038356,7]
[314094114,1707972639373,-500.0,0.00038356,7]
[314094116,1707972639382,-500.0,0.00038356,7]
[314094118,1707972639392,-500.0,0.00038356,7]
[314094120,1707972639401,-523.66566964,0.00038356,7]
[314094122,1707972639410,-528.12073428,0.00038356,7]
[314094124,1707972639419,-500.0,0.00038356,7]
[314094126,1707972639428,-500.0,0.00038356,7]
[314094128,1707972639437,-500.0,0.00038356,7]
[314094130,1707972639447,-522.71230995,0.00038356,7]
[314094132,1707972639456,-500.0,0.00038356,7]
[314094134,1707972639465,-524.33179014,0.00038356,7]
[314094136,1707972639474,-555.68046817,0.00038356,7]
[314094138,1707972639484,-500.0,0.00038356,7]
[314094140,1707972639493,-510.29028749,0.00038356,7]
[314094142,1707972639502,-500.0,0.00038356,7]
[314094144,1707972639511,-510.66776889,0.00038356,7]
[314094146,1707972639519,-500.0,0.00038356,7]
[314094148,1707972639529,-500.0,0.00038356,7]
[314094150,1707972639538,-505.93848379,0.00038356,7]
[314094152,1707972639547,-500.0,0.00038356,7]
[314094154,1707972639556,-500.0,0.00038356,7]
[314094156,1707972639566,-500.0,0.00038356,7]
[314094158,1707972639575,-500.0,0.00038356,7]
[314094160,1707972639585,-196.42188972,0.00038356,7]
[314094162,1707972639593,-500.0,0.00038356,7]
[314094164,1707972639602,-500.0,0.00038356,7]
[314094166,1707972639612,-500.0,0.00038356,7]
[314094168,1707972639622,-500.0,0.00038356,7]
[314094170,1707972639631,-514.45206235,0.00038356,7]
[314094172,1707972639641,-500.0,0.00038356,7]
[314094174,1707972639650,-500.0,0.00038356,7]
[314094176,1707972639659,-500.0,0.00038356,7]
[314094178,1707972639668,-500.0,0.00038356,7]
[314094180,1707972639677,-530.22005473,0.00038356,7]
[314094182,1707972639686,-500.0,0.00038356,7]
[314094184,1707972639695,-500.0,0.00038356,7]
[314094186,1707972639704,-500.0,0.00038356,7]
[314094188,1707972639713,-500.0,0.00038356,7]
[314094190,1707972639723,-500.0,0.00038356,7]
[314094192,1707972639732,-535.21179807,0.00038356,7]
[314094194,1707972639741,-500.0,0.00038356,7]
[314094196,1707972639751,-500.0,0.00038356,7]
[314094198,1707972639761,-500.0,0.00038356,7]
[314094200,1707972639770,-507.28433646,0.00038356,7]
[314094202,1707972639779,-535.33670186,0.00038356,7]
[314094204,1707972639789,-500.0,0.00038356,7]
[314094206,1707972639798,-500.0,0.00038356,7]
[314094209,1707972639807,-500.0,0.00038356,7]
[314094212,1707972639817,-500.0,0.00038356,7]
[314094214,1707972639826,-500.0,0.00038356,7]
[314094216,1707972639836,-500.0,0.00038356,7]
[314094218,1707972639846,-500.0,0.00038356,7]
[314094220,1707972639855,-1123.16,0.00038356,7]
[314094222,1707972639864,-535.29061177,0.00038356,7]
[314094224,1707972639873,-500.0,0.00038356,7]
[314094226,1707972639882,-158.89541047,0.00038356,7]
[314094228,1707972639891,-500.0,0.00038356,7]
[314094230,1707972639901,-530.87648806,0.00038356,7]
[314094232,1707972639910,-530.0,0.00038356,7]
[314094234,1707972639919,-500.0,0.00038356,7]
[314094236,1707972639929,-500.0,0.00038356,7]
[314094238,1707972639938,-523.53320166,0.00038356,7]
[314094240,1707972639948,-525.39054941,0.00038356,7]
[314094242,1707972639957,-500.0,0.00038356,7]
[314094244,1707972639967,-529.15164544,0.00038356,7]
[314094246,1707972639975,-521.12434999,0.00038356,7]
[314094248,1707972639984,-500.0,0.00038356,7]
[314094250,1707972639994,-500.0,0.00038356,7]
[314094252,1707972640003,-500.0,0.00038356,7]
[314094254,1707972640012,-500.0,0.00038356,7]
[314094256,1707972640021,-520.1388651,0.00038356,7]
[314094258,1707972640030,-500.0,0.00038356,7]
[314094260,1707972640039,-605.17217558,0.00038356,7]
[314094262,1707972640048,-519.69347015,0.00038356,7]
[314094264,1707972640057,-500.0,0.00038356,7]
[314094266,1707972640066,-500.0,0.00038356,7]
[314094268,1707972640075,-500.0,0.00038356,7]
[314094270,1707972640084,-500.0,0.00038356,7]
[314094272,1707972640093,-500.89323947,0.00038356,7]
[314094274,1707972640103,-518.9105739,0.00038356,7]
[314094276,1707972640115,-537.39755263,0.00038356,7]
[314094278,1707972640126,-500.0,0.00038356,7]
[314094280,1707972640135,-500.0,0.00038356,7]
[314094282,1707972640144,-500.0,0.00038356,7]
[314094284,1707972640153,-500.0,0.00038356,7]
[314094286,1707972640162,-500.0,0.00038356,7]
[314094287,1707972640171,-525.68966591,0.00038356,7]
[314094288,1707972640180,-919.13,0.00038356,7]
[314094289,1707972640190,-919.13,0.00038356,7]
[314094290,1707972640200,-500.0,0.00038356,7]
[314094291,1707972640209,-512.2925802,0.00038356,7]
[314094292,1707972640218,-500.0,0.00038356,7]
[314094293,1707972640227,-500.0,0.00038356,7]
[314094294,1707972640236,-234.19766891,0.00038356,7]
[314094296,1707972640245,-500.0,0.00038356,7]
[314094298,1707972640254,-500.0,0.00038356,7]
[314094300,1707972640263,-500.0,0.00038356,7]
[314094302,1707972640272,-500.0,0.00038356,7]
[314094304,1707972640281,-500.0,0.00038356,7]
[314094306,1707972640290,-533.13573245,0.00038356,7]
[314094308,1707972640299,-500.0,0.00038356,7]
[314094310,1707972640308,-512.99332063,0.00038356,7]
[314094312,1707972640318,-502.84384408,0.00038356,10]
[314094314,1707972640326,-500.0,0.00038356,7]
[314094316,1707972640335,-523.23011409,0.00038356,7]
[314094318,1707972640344,-526.14166542,0.00038356,7]
[314094320,1707972640353,-512.02439695,0.00038356,7]
[314094322,1707972640362,-500.0,0.00038356,7]
[314094324,1707972640371,-525.33153705,0.00038356,7]
[314094326,1707972640379,-500.0,0.00038356,7]
[314094328,1707972640389,-535.94198773,0.00038356,7]
[314094331,1707972640398,-500.0,0.00038356,7]
[314094334,1707972640407,-508.93226403,0.00038356,7]
[314094336,1707972640416,-500.0,0.00038356,7]
[314094338,1707972640425,-500.0,0.00038356,7]
[314094340,1707972640437,-500.0,0.00038356,7]
[314094342,1707972640448,-500.0,0.00038356,7]
[314094344,1707972640458,-500.0,0.00038356,7]
[314094346,1707972640468,-500.0,0.00038356,7]
[314094348,1707972640478,-500.0,0.00038356,7]
[314094350,1707972640488,-500.0,0.00038356,7]
[314094352,1707972640499,-500.0,0.00038356,7]
[314094354,1707972640509,-500.0,0.00038356,7]
[314094356,1707972640519,-544.62687608,0.00038356,7]
[314094358,1707972640529,-500.0,0.00038356,7]
[314094360,1707972640538,-500.0,0.00038356,7]
[314094362,1707972640548,-500.0,0.00038356,7]
[314094364,1707972640558,-512.10546167,0.00038356,7]
[314094366,1707972640567,-500.0,0.00038356,7]
[314094369,1707972640578,-500.0,0.00038356,7]
[314094371,1707972640590,-500.0,0.00038356,7]
[314094372,1707972640599,-500.0,0.00038356,7]
[314094375,1707972640610,-500.0,0.00038356,7]
[314094377,1707972640619,-554.16866169,0.00038356,7]
[314094378,1707972640629,-500.0,0.00038356,7]
[314094381,1707972640639,-500.0,0.00038356,7]
[314094383,1707972640649,-505.1305701,0.00038356,7]
[314094385,1707972640658,-518.5058178,0.00038356,7]
[314094387,1707972640667,-500.0,0.00038356,7]
[314094389,1707972640677,-500.0,0.00038356,7]
[314094390,1707972640686,-516.50611236,0.00038356,7]
[314094392,1707972640695,-500.0,0.00038356,7]
[314094395,1707972640706,-500.0,0.00038356,7]
[314094397,1707972640715,-500.0,0.00038356,7]
[314094399,1707972640724,-500.0,0.00038356,7]
[314094400,1707972640733,-500.0,0.00038356,7]
[314094402,1707972640742,-500.0,0.00038356,7]
[314094404,1707972640751,-500.0,0.00038356,7]
[314094406,1707972640760,-500.0,0.00038356,7]
[314094408,1707972640769,-150.29,0.00038356,2]
[314094410,1707972640778,-500.0,0.00038427,2]
[314094412,1707972640787,-783.2047,0.0003843,2]
[314094414,1707972640797,-2965.2098,0.0003843,2]
[314094416,1707972640806,-82837.8495868,0.0003849,2]
[314094418,1707972640815,-29307.25594336,0.000385,2]
[314094420,1707972640824,-500.0,0.00038528,7]
[314094422,1707972640833,-500.0,0.00038529,7]
[314094424,1707972640844,-500.0,0.00038529,7]
[314094426,1707972640853,-3000.0,0.00038529,2]
[314094428,1707972640862,-181.51913815,0.00038529,12]
[314094430,1707972640872,-2000.0,0.0003853,2]
[314094432,1707972640881,-200.0,0.0003853,2]
[314094434,1707972640891,-509.81,0.00038539,2]
[314094436,1707972640901,-413.13,0.00038548,2]
[314094438,1707972640911,-82837.8495868,0.0003862,3]
[314094441,1707972640921,-500.0,0.00038629,2]
[314094443,1707972640931,-602.44,0.00038629,7]
[314094445,1707972640940,-919.13,0.00038629,7]
[314094446,1707972640949,-526.98757054,0.0003863,7]
[314094449,1707972640959,-500.0,0.0003863,7]
[314094451,1707972640970,-538.25853175,0.0003863,7]
[314094453,1707972640979,-343.28,0.0003863,7]
[314094455,1707972640989,-513.91031969,0.0003863,7]
[314094457,1707972640998,-531.92876867,0.0003863,7]
[314094459,1707972641007,-519.94743154,0.0003863,7]
[314094461,1707972641016,-500.0,0.0003863,7]
[314094463,1707972641025,-414.59066216,0.0003863,7]
[314094465,1707972641034,-521.16182488,0.0003863,7]
[314094467,1707972641043,-500.0,0.0003863,7]
[314094469,1707972641052,-500.0,0.0003863,7]
[314094471,1707972641061,-536.05780918,0.0003863,7]
[314094473,1707972641070,-500.0,0.0003863,7]
[314094474,1707972641079,-430.0,0.0003863,7]
[314094477,1707972641089,-500.0,0.0003863,7]
[314094478,1707972641098,-500.0,0.0003863,2]
[314094481,1707972641109,-500.0,0.0003863,7]
[314094482,1707972641120,-587.31176927,0.0003863,7]
[314094484,1707972641129,-500.0,0.0003863,7]
[314094486,1707972641139,-500.0,0.0003863,7]
[314094488,1707972641149,-500.0,0.0003863,7]
[314094490,1707972641158,-500.0,0.0003863,7]
[314094492,1707972641167,-500.0,0.0003863,7]
[314094495,1707972641177,-500.0,0.0003863,2]
[314094497,1707972641186,-500.0,0.0003863,7]
[314094498,1707972641195,-500.0,0.0003863,7]
[314094500,1707972641204,-507.54656674,0.0003863,7]
[314094502,1707972641213,-500.0,0.0003863,7]
[314094504,1707972641222,-500.0,0.0003863,7]
[314094506,1707972641231,-500.0,0.0003863,7]
[314094508,1707972641240,-500.0,0.0003863,7]
[314094510,1707972641249,-244.08102835,0.0003863,7]
[314094512,1707972641258,-621.50670025,0.0003863,7]
[314094514,1707972641267,-500.0,0.0003863,7]
[314094516,1707972641277,-500.0,0.0003863,7]
[314094519,1707972641287,-500.0,0.0003863,7]
[314094521,1707972641296,-509.68790486,0.0003863,7]
[314094523,1707972641305,-500.0,0.0003863,7]
[314094524,1707972641314,-611.38543543,0.0003863,7]
[314094526,1707972641323,-541.25465651,0.0003863,7]
[314094529,1707972641333,-500.0,0.0003863,7]
[314094531,1707972641345,-641.68532853,0.0003863,7]
[314094533,1707972641355,-500.0,0.0003863,7]
[314094535,1707972641363,-544.87870165,0.0003863,7]